[Event "*** Titled Tuesday Blitz"]
[Site "Chess.com"]
[Date "2020.10.20"]
[Round "9"]
[White "JoliyRoger"]
[Black "barbara25"]
[Result "0-1"]
[WhiteElo "2425"]
[BlackElo "2306"]
[TimeControl "180+1"]
[EndTime "11:46:38 PDT"]
[Termination "barbara25 won on time"]

1. Nf3 {[%clk 0:02:58.6]} 1... Nf6 {[%clk 0:02:59.2]} 2. c4 {[%clk 0:02:58]}
2... e6 {[%clk 0:02:59.4]} 3. d4 {[%clk 0:02:57.9]} 3... d5 {[%clk 0:03:00.3]}
4. cxd5 {[%clk 0:02:57.9]} 4... exd5 {[%clk 0:02:59.7]} 5. Nc3 {[%clk
0:02:58.5]} 5... c6 {[%clk 0:03:00.2]} 6. Bg5 {[%clk 0:02:58.9]} 6... Be7 {[%clk
0:03:00.6]} 7. Bxf6 {[%clk 0:02:59.3]} 7... Bxf6 {[%clk 0:03:00]} 8. e3 {[%clk
0:03:00.2]} 8... O-O {[%clk 0:03:00.2]} 9. Bd3 {[%clk 0:03:00.7]} 9... Nd7
{[%clk 0:03:00.7]} 10. Qc2 {[%clk 0:03:01.3]} 10... h6 {[%clk 0:03:00.2]} 11. h3
{[%clk 0:03:01.8]} 11... Re8 {[%clk 0:02:56.7]} 12. O-O {[%clk 0:03:02]} 12...
Nf8 {[%clk 0:02:56.4]} 13. b4 {[%clk 0:03:02.5]} 13... Be6 {[%clk 0:02:54.2]}
14. b5 {[%clk 0:03:01.9]} 14... Qd7 {[%clk 0:02:53.9]} 15. bxc6 {[%clk 0:03:02]}
15... bxc6 {[%clk 0:02:54]} 16. Rfc1 {[%clk 0:02:58.3]} 16... Rec8 {[%clk
0:02:52.9]} 17. Na4 {[%clk 0:02:57]} 17... Be7 {[%clk 0:02:52.4]} 18. Nc5 {[%clk
0:02:54.7]} 18... Bxc5 {[%clk 0:02:52]} 19. Qxc5 {[%clk 0:02:55.2]} 19... Ng6
{[%clk 0:02:51.7]} 20. Bxg6 {[%clk 0:02:54.1]} 20... fxg6 {[%clk 0:02:51.3]} 21.
Ne5 {[%clk 0:02:54.7]} 21... Qe8 {[%clk 0:02:51.4]} 22. Nxc6 {[%clk 0:02:37.3]}
22... Rc7 {[%clk 0:02:45.7]} 23. Qd6 {[%clk 0:02:33.8]} 23... Rac8 {[%clk
0:02:45.7]} 24. Ne7+ {[%clk 0:02:24.5]} 24... Qxe7 {[%clk 0:02:40.1]} 25. Qxe7
{[%clk 0:02:14.6]} 25... Rxe7 {[%clk 0:02:37.5]} 26. Rxc8+ {[%clk 0:02:15.1]}
26... Bxc8 {[%clk 0:02:37.4]} 27. Rc1 {[%clk 0:02:16]} 27... Be6 {[%clk
0:02:37.5]} 28. Rc6 {[%clk 0:02:14.2]} 28... Kf7 {[%clk 0:02:36.2]} 29. g4
{[%clk 0:02:14.5]} 29... Rb7 {[%clk 0:02:35.5]} 30. Ra6 {[%clk 0:02:14.1]} 30...
Bc8 {[%clk 0:02:34]} 31. Kg2 {[%clk 0:02:11.8]} 31... h5 {[%clk 0:02:31.6]} 32.
Kg3 {[%clk 0:02:03.2]} 32... hxg4 {[%clk 0:02:30.3]} 33. hxg4 {[%clk 0:02:03.8]}
33... Rc7 {[%clk 0:02:30.4]} 34. Ra5 {[%clk 0:02:03.9]} 34... Be6 {[%clk
0:02:30.4]} 35. Kf4 {[%clk 0:01:59.8]} 35... Re7 {[%clk 0:02:25.5]} 36. a3
{[%clk 0:01:55.8]} 36... Rb7 {[%clk 0:02:24.6]} 37. Ra6 {[%clk 0:01:51.2]} 37...
Bc8 {[%clk 0:02:21.3]} 38. Ra5 {[%clk 0:01:50.5]} 38... Rd7 {[%clk 0:02:18.2]}
39. Ke5 {[%clk 0:01:41.3]} 39... Rc7 {[%clk 0:02:16.7]} 40. Kxd5 {[%clk
0:01:19.1]} 40... Bxg4 {[%clk 0:02:15]} 41. Ke5 {[%clk 0:01:19.2]} 41... Bc8
{[%clk 0:02:12.6]} 42. e4 {[%clk 0:01:12.5]} 42... a6 {[%clk 0:02:09.4]} 43. d5
{[%clk 0:01:10.4]} 43... Rc2 {[%clk 0:02:08.9]} 44. f4 {[%clk 0:01:09.6]} 44...
Rc4 {[%clk 0:02:06.2]} 45. f5 {[%clk 0:00:13.6]} 45... g5 {[%clk 0:02:01.1]} 46.
d6 {[%clk 0:00:11.6]} 46... Bb7 {[%clk 0:02:00.3]} 47. d7 {[%clk 0:00:11.8]}
47... Ke7 {[%clk 0:01:59.9]} 48. f6+ {[%clk 0:00:06.5]} 48... gxf6+ {[%clk
0:01:59.2]} 49. Kf5 {[%clk 0:00:04.8]} 49... Bxe4+ {[%clk 0:01:59.1]} 50. Kg4
{[%clk 0:00:05.2]} 50... Kxd7 {[%clk 0:01:59.1]} 0-1

[Event "*** Titled Tuesday Blitz"]
[Site "Chess.com"]
[Date "2020.10.20"]
[Round "9"]
[White "TurboSteen"]
[Black "lelya96"]
[Result "1-0"]
[WhiteElo "2049"]
[BlackElo "2162"]
[TimeControl "180+1"]
[EndTime "11:46:43 PDT"]
[Termination "TurboSteen won by resignation"]

1. e4 {[%clk 0:02:48.9]} 1... e5 {[%clk 0:02:59.5]} 2. f4 {[%clk 0:02:46.3]}
2... d5 {[%clk 0:02:58.1]} 3. exd5 {[%clk 0:02:41.5]} 3... Qxd5 {[%clk
0:02:53.8]} 4. Nc3 {[%clk 0:02:38.3]} 4... Qa5 {[%clk 0:02:51.3]} 5. fxe5 {[%clk
0:02:34.4]} 5... Qxe5+ {[%clk 0:02:50.1]} 6. Be2 {[%clk 0:02:33]} 6... Bc5
{[%clk 0:02:48.9]} 7. Nf3 {[%clk 0:02:28.5]} 7... Qe7 {[%clk 0:02:35.9]} 8. d4
{[%clk 0:02:23.8]} 8... Bb4 {[%clk 0:02:35.9]} 9. O-O {[%clk 0:02:22]} 9... Nf6
{[%clk 0:02:33.7]} 10. Bg5 {[%clk 0:02:18.7]} 10... Bxc3 {[%clk 0:02:30]} 11.
bxc3 {[%clk 0:02:14.9]} 11... O-O {[%clk 0:02:14.3]} 12. Ne5 {[%clk 0:02:13.1]}
12... Nbd7 {[%clk 0:02:06.9]} 13. Nxd7 {[%clk 0:02:07.7]} 13... Bxd7 {[%clk
0:02:05.3]} 14. Bd3 {[%clk 0:02:05.6]} 14... Rfe8 {[%clk 0:01:11.2]} 15. Rxf6
{[%clk 0:01:45.7]} 15... h6 {[%clk 0:00:34.7]} 16. Bh7+ {[%clk 0:01:11.4]} 16...
Kh8 {[%clk 0:00:31]} 17. Qh5 {[%clk 0:00:59.7]} 17... Bg4 {[%clk 0:00:28.8]} 18.
Qxg4 {[%clk 0:00:48.8]} 18... gxf6 {[%clk 0:00:28.8]} 19. Bxh6 {[%clk
0:00:45.4]} 19... Rg8 {[%clk 0:00:28.9]} 20. Bxg8 {[%clk 0:00:44.2]} 20... Rxg8
{[%clk 0:00:28]} 21. Qh5 {[%clk 0:00:42.8]} 21... Rxg2+ {[%clk 0:00:17.6]} 22.
Kxg2 {[%clk 0:00:39.5]} 22... Qe4+ {[%clk 0:00:17.5]} 23. Qf3 {[%clk 0:00:35.5]}
23... Qg6+ {[%clk 0:00:17.3]} 24. Qg3 {[%clk 0:00:33.4]} 24... Qxh6 {[%clk
0:00:15.1]} 25. Qh3 {[%clk 0:00:33]} 1-0

[Event "*** Titled Tuesday Blitz"]
[Site "Chess.com"]
[Date "2020.10.20"]
[Round "9"]
[White "AttractiveMustard"]
[Black "szefru"]
[Result "0-1"]
[WhiteElo "2342"]
[BlackElo "2253"]
[TimeControl "180+1"]
[EndTime "11:46:44 PDT"]
[Termination "szefru won on time"]

1. e4 {[%clk 0:02:56.6]} 1... Nf6 {[%clk 0:02:59.4]} 2. e5 {[%clk 0:02:55.8]}
2... Nd5 {[%clk 0:02:58.8]} 3. d4 {[%clk 0:02:56.4]} 3... d6 {[%clk 0:02:59.2]}
4. Nf3 {[%clk 0:02:56.3]} 4... g6 {[%clk 0:02:57.5]} 5. c4 {[%clk 0:02:47.6]}
5... Nb6 {[%clk 0:02:54.9]} 6. exd6 {[%clk 0:02:46.8]} 6... cxd6 {[%clk
0:02:54.3]} 7. Nc3 {[%clk 0:02:46.4]} 7... Bg7 {[%clk 0:02:54.2]} 8. h3 {[%clk
0:02:40.3]} 8... O-O {[%clk 0:02:53.3]} 9. Be2 {[%clk 0:02:36.9]} 9... Nc6
{[%clk 0:02:53.5]} 10. O-O {[%clk 0:02:36.5]} 10... e5 {[%clk 0:02:52.7]} 11.
dxe5 {[%clk 0:02:23.2]} 11... dxe5 {[%clk 0:02:53.6]} 12. c5 {[%clk 0:02:23.7]}
12... Nd7 {[%clk 0:02:48.7]} 13. Be3 {[%clk 0:02:23.5]} 13... Qe7 {[%clk
0:02:44.4]} 14. Nd5 {[%clk 0:02:20.8]} 14... Qd8 {[%clk 0:02:41.8]} 15. Ng5
{[%clk 0:01:57.1]} 15... h6 {[%clk 0:02:29.3]} 16. Ne4 {[%clk 0:01:53.1]} 16...
f5 {[%clk 0:02:26.7]} 17. Nd6 {[%clk 0:01:37.4]} 17... f4 {[%clk 0:02:26]} 18.
Qb3 {[%clk 0:00:59.7]} 18... Kh7 {[%clk 0:02:17.6]} 19. Nxb7 {[%clk 0:00:58.2]}
19... Bxb7 {[%clk 0:02:10]} 20. Qxb7 {[%clk 0:00:57.9]} 20... Na5 {[%clk
0:02:10.1]} 21. Qa6 {[%clk 0:00:39.2]} 21... fxe3 {[%clk 0:02:08.8]} 22. c6
{[%clk 0:00:20.1]} 22... exf2+ {[%clk 0:01:58.2]} 23. Kh1 {[%clk 0:00:16.2]}
23... Nb6 {[%clk 0:01:45.5]} 24. Nb4 {[%clk 0:00:03.6]} 24... Qd2 {[%clk
0:01:28.4]} 25. Qxa5 {[%clk 0:00:03]} 25... Qxe2 {[%clk 0:01:27.4]} 26. Rac1
{[%clk 0:00:02.4]} 26... e4 {[%clk 0:01:13.7]} 27. c7 {[%clk 0:00:02.2]} 27...
e3 {[%clk 0:01:12.6]} 28. Qc5 {[%clk 0:00:01.5]} 28... Qxb2 {[%clk 0:01:10.5]}
29. Nd5 {[%clk 0:00:01.6]} 29... Nxd5 {[%clk 0:01:09.5]} 30. Qxd5 {[%clk
0:00:01.5]} 30... e2 {[%clk 0:01:08.2]} 0-1

[Event "*** Titled Tuesday Blitz"]
[Site "Chess.com"]
[Date "2020.10.20"]
[Round "9"]
[White "EvgenyRomanov"]
[Black "northridgehawk"]
[Result "1-0"]
[WhiteElo "2581"]
[BlackElo "2241"]
[TimeControl "180+1"]
[EndTime "11:46:45 PDT"]
[Termination "EvgenyRomanov won by resignation"]

1. c4 {[%clk 0:03:00.9]} 1... Nf6 {[%clk 0:02:47.2]} 2. g3 {[%clk 0:02:59.2]}
2... g6 {[%clk 0:02:46.8]} 3. Bg2 {[%clk 0:02:58.9]} 3... d5 {[%clk 0:02:47.7]}
4. cxd5 {[%clk 0:02:58.1]} 4... Nxd5 {[%clk 0:02:48.6]} 5. Nc3 {[%clk
0:02:58.4]} 5... Nb6 {[%clk 0:02:48.7]} 6. h4 {[%clk 0:02:58.6]} 6... h5 {[%clk
0:02:45.5]} 7. d3 {[%clk 0:02:56.9]} 7... Bg7 {[%clk 0:02:45.8]} 8. Nf3 {[%clk
0:02:56.7]} 8... Nc6 {[%clk 0:02:46.1]} 9. O-O {[%clk 0:02:56.2]} 9... O-O
{[%clk 0:02:45.9]} 10. Bg5 {[%clk 0:02:53.8]} 10... Be6 {[%clk 0:02:41.3]} 11.
Rc1 {[%clk 0:02:52.8]} 11... a5 {[%clk 0:02:19]} 12. a3 {[%clk 0:02:35.7]} 12...
a4 {[%clk 0:02:17.2]} 13. Nd2 {[%clk 0:02:34.8]} 13... Qc8 {[%clk 0:02:11.5]}
14. Bxc6 {[%clk 0:02:11.6]} 14... bxc6 {[%clk 0:02:11.1]} 15. Bxe7 {[%clk
0:02:12.1]} 15... Re8 {[%clk 0:02:11.5]} 16. Bg5 {[%clk 0:02:08.9]} 16... Bh3
{[%clk 0:02:01.5]} 17. Re1 {[%clk 0:02:08.7]} 17... Nd5 {[%clk 0:01:50.1]} 18.
Nde4 {[%clk 0:02:05.8]} 18... f6 {[%clk 0:01:40.7]} 19. Bd2 {[%clk 0:01:55.8]}
19... Qe6 {[%clk 0:01:33.6]} 20. Nxa4 {[%clk 0:01:51]} 20... f5 {[%clk
0:01:27.9]} 21. Ng5 {[%clk 0:01:49.7]} 21... Qd6 {[%clk 0:01:27]} 22. Nxh3
{[%clk 0:01:48.2]} 22... Bd4 {[%clk 0:01:18.8]} 23. Nf4 {[%clk 0:01:42.3]} 23...
g5 {[%clk 0:01:10.4]} 24. hxg5 {[%clk 0:01:36.9]} 24... h4 {[%clk 0:01:10.2]}
25. Kg2 {[%clk 0:01:30.8]} 25... hxg3 {[%clk 0:01:00.8]} 26. fxg3 {[%clk
0:01:30.6]} 26... Ne3+ {[%clk 0:01:00.4]} 27. Bxe3 {[%clk 0:01:30.3]} 27... Bxe3
{[%clk 0:00:58.6]} 28. Rc4 {[%clk 0:01:28]} 28... Re7 {[%clk 0:00:47]} 29. Nc3
{[%clk 0:01:25.2]} 29... Rg7 {[%clk 0:00:45.6]} 30. Qb3 {[%clk 0:01:19]} 30...
Kf8 {[%clk 0:00:39.8]} 31. Nd1 {[%clk 0:01:09.3]} 31... Bxf4 {[%clk 0:00:21.4]}
32. Rxf4 {[%clk 0:01:10.2]} 32... Rxg5 {[%clk 0:00:21.3]} 33. Ref1 {[%clk
0:01:09]} 33... Ra5 {[%clk 0:00:20.3]} 34. Ne3 {[%clk 0:01:06.8]} 34... Qg6
{[%clk 0:00:18.7]} 35. R1f3 {[%clk 0:01:03.9]} 35... Kg7 {[%clk 0:00:18]} 36.
Qc3+ {[%clk 0:01:03]} 36... Kh6 {[%clk 0:00:15.3]} 37. Qh8+ {[%clk 0:00:59.9]}
37... Qh7 {[%clk 0:00:14.6]} 38. Rh4+ {[%clk 0:01:00]} 1-0

[Event "*** Titled Tuesday Blitz"]
[Site "Chess.com"]
[Date "2020.10.20"]
[Round "9"]
[White "Beca95"]
[Black "Bigfish1995"]
[Result "1-0"]
[WhiteElo "2915"]
[BlackElo "3044"]
[TimeControl "180+1"]
[EndTime "11:46:46 PDT"]
[Termination "Beca95 won by resignation"]

1. d4 {[%clk 0:03:00.9]} 1... d5 {[%clk 0:02:57.6]} 2. c4 {[%clk 0:03:00.9]}
2... e6 {[%clk 0:02:58]} 3. Nc3 {[%clk 0:03:01.1]} 3... h6 {[%clk 0:02:57.3]} 4.
Nf3 {[%clk 0:03:00]} 4... Nf6 {[%clk 0:02:55.2]} 5. g3 {[%clk 0:03:00.3]} 5...
Bd6 {[%clk 0:02:54.3]} 6. Bg2 {[%clk 0:02:51.1]} 6... O-O {[%clk 0:02:54.4]} 7.
Qb3 {[%clk 0:02:44.6]} 7... c6 {[%clk 0:02:48.6]} 8. O-O {[%clk 0:02:38.5]} 8...
Nbd7 {[%clk 0:02:48.2]} 9. Nd2 {[%clk 0:02:36]} 9... c5 {[%clk 0:02:36.5]} 10.
e3 {[%clk 0:02:34.5]} 10... cxd4 {[%clk 0:02:32.8]} 11. exd4 {[%clk 0:02:35.4]}
11... dxc4 {[%clk 0:02:27.5]} 12. Nxc4 {[%clk 0:02:36.3]} 12... Bc7 {[%clk
0:02:28]} 13. a4 {[%clk 0:02:30.8]} 13... a6 {[%clk 0:02:22.9]} 14. Be3 {[%clk
0:02:23.3]} 14... Ng4 {[%clk 0:02:21.2]} 15. Bd2 {[%clk 0:02:22]} 15... Rb8
{[%clk 0:02:19.7]} 16. d5 {[%clk 0:02:16.5]} 16... Nde5 {[%clk 0:01:54]} 17.
Rad1 {[%clk 0:02:15.3]} 17... Nxc4 {[%clk 0:01:51.1]} 18. Qxc4 {[%clk
0:02:14.6]} 18... e5 {[%clk 0:01:49.9]} 19. h3 {[%clk 0:02:01.1]} 19... Nf6
{[%clk 0:01:49.6]} 20. Be3 {[%clk 0:02:01.4]} 20... Bd6 {[%clk 0:01:47.2]} 21.
Qb3 {[%clk 0:02:01.4]} 21... Qe7 {[%clk 0:01:22.9]} 22. a5 {[%clk 0:01:59.2]}
22... Bf5 {[%clk 0:01:16.8]} 23. Na4 {[%clk 0:01:53.7]} 23... Rbc8 {[%clk
0:01:15.7]} 24. Nb6 {[%clk 0:01:53.2]} 24... Bc2 {[%clk 0:01:07]} 25. Nxc8
{[%clk 0:01:52.1]} 25... Rxc8 {[%clk 0:01:07.9]} 26. Qb6 {[%clk 0:01:48.8]}
26... Bxd1 {[%clk 0:01:07.9]} 27. Rxd1 {[%clk 0:01:48.8]} 27... Rc2 {[%clk
0:01:02.9]} 28. Bf1 {[%clk 0:01:31.8]} 28... e4 {[%clk 0:00:56.2]} 29. Qb3
{[%clk 0:01:30.8]} 29... Qc7 {[%clk 0:00:47.1]} 30. Bd4 {[%clk 0:01:25.9]} 30...
Nh5 {[%clk 0:00:32.3]} 31. Bc3 {[%clk 0:01:12.2]} 31... Bc5 {[%clk 0:00:16.8]}
32. d6 {[%clk 0:01:04.7]} 32... Rxf2 {[%clk 0:00:16.9]} 33. dxc7 {[%clk
0:01:02.4]} 33... Rd2+ {[%clk 0:00:17]} 34. Bd4 {[%clk 0:00:56.3]} 34... Bxd4+
{[%clk 0:00:16.5]} 35. Kh1 {[%clk 0:00:56.7]} 1-0

[Event "*** Titled Tuesday Blitz"]
[Site "Chess.com"]
[Date "2020.10.20"]
[Round "9"]
[White "Zemerovv"]
[Black "WPWPWP-2015"]
[Result "0-1"]
[WhiteElo "2293"]
[BlackElo "2448"]
[TimeControl "180+1"]
[EndTime "11:46:47 PDT"]
[Termination "WPWPWP-2015 won by resignation"]

1. g3 {[%clk 0:02:25.5]} 1... h5 {[%clk 0:02:58.7]} 2. Bg2 {[%clk 0:02:26.4]}
2... h4 {[%clk 0:02:58.7]} 3. d4 {[%clk 0:02:23.7]} 3... d5 {[%clk 0:02:57.5]}
4. Nc3 {[%clk 0:02:21.9]} 4... c6 {[%clk 0:02:56.5]} 5. e4 {[%clk 0:02:21.4]}
5... h3 {[%clk 0:02:55.5]} 6. Bf3 {[%clk 0:02:18.9]} 6... dxe4 {[%clk
0:02:40.7]} 7. Nxe4 {[%clk 0:02:15.6]} 7... Nf6 {[%clk 0:02:41.6]} 8. Nxf6+
{[%clk 0:02:14]} 8... exf6 {[%clk 0:02:42.5]} 9. Ne2 {[%clk 0:02:13.4]} 9... g6
{[%clk 0:02:33.1]} 10. O-O {[%clk 0:02:12.4]} 10... Bg7 {[%clk 0:02:32.9]} 11.
Re1 {[%clk 0:02:11.9]} 11... O-O {[%clk 0:02:32.5]} 12. c3 {[%clk 0:02:10.2]}
12... f5 {[%clk 0:02:29.8]} 13. Be3 {[%clk 0:02:07.6]} 13... g5 {[%clk
0:02:28.8]} 14. d5 {[%clk 0:01:58.6]} 14... g4 {[%clk 0:02:17.6]} 15. Bh1 {[%clk
0:01:54.5]} 15... Nd7 {[%clk 0:02:15.6]} 16. dxc6 {[%clk 0:01:48.6]} 16... bxc6
{[%clk 0:02:16.5]} 17. Bxc6 {[%clk 0:01:47.8]} 17... Rb8 {[%clk 0:02:16.9]} 18.
Bd4 {[%clk 0:01:40.3]} 18... Ne5 {[%clk 0:02:14.4]} 19. Bxe5 {[%clk 0:01:35.3]}
19... Bxe5 {[%clk 0:02:13.8]} 20. Qxd8 {[%clk 0:01:34.4]} 20... Rxd8 {[%clk
0:02:11.9]} 21. Rad1 {[%clk 0:01:32.2]} 21... Rxd1 {[%clk 0:02:06.1]} 22. Rxd1
{[%clk 0:01:30.7]} 22... Rxb2 {[%clk 0:02:00.6]} 23. Nd4 {[%clk 0:01:13]} 23...
Rxa2 {[%clk 0:01:51]} 24. f4 {[%clk 0:01:00.9]} 24... Bc7 {[%clk 0:01:43]} 25.
Re1 {[%clk 0:00:49.5]} 25... Kg7 {[%clk 0:01:32.3]} 26. Re8 {[%clk 0:00:45.2]}
26... Ba6 {[%clk 0:01:18.3]} 27. Nxf5+ {[%clk 0:00:40.1]} 27... Kf6 {[%clk
0:01:16.9]} 28. Ne3 {[%clk 0:00:36.5]} 28... Bb6 {[%clk 0:01:13.9]} 29. c4
{[%clk 0:00:32.8]} 29... Bxc4 {[%clk 0:01:12.3]} 30. Bd5 {[%clk 0:00:17.2]}
30... Bxd5 {[%clk 0:01:07.9]} 31. Kf1 {[%clk 0:00:11.7]} 31... Bxe3 {[%clk
0:01:03.5]} 32. Rxe3 {[%clk 0:00:09.3]} 32... Rxh2 {[%clk 0:01:02.6]} 0-1

[Event "*** Titled Tuesday Blitz"]
[Site "Chess.com"]
[Date "2020.10.20"]
[Round "9"]
[White "WIDBIFS"]
[Black "Azerichess"]
[Result "0-1"]
[WhiteElo "2776"]
[BlackElo "2982"]
[TimeControl "180+1"]
[EndTime "11:46:50 PDT"]
[Termination "Azerichess won by resignation"]

1. d4 {[%clk 0:03:00.2]} 1... Nf6 {[%clk 0:02:57.5]} 2. Nf3 {[%clk 0:03:00.6]}
2... g6 {[%clk 0:02:57.8]} 3. g3 {[%clk 0:03:00.6]} 3... Bg7 {[%clk 0:02:58.1]}
4. Bg2 {[%clk 0:03:00.9]} 4... O-O {[%clk 0:02:58.8]} 5. O-O {[%clk 0:03:01.5]}
5... d6 {[%clk 0:02:59.5]} 6. c4 {[%clk 0:03:01.9]} 6... Nbd7 {[%clk 0:03:00.1]}
7. Nc3 {[%clk 0:03:01.8]} 7... e5 {[%clk 0:03:00.7]} 8. e4 {[%clk 0:03:02.1]}
8... exd4 {[%clk 0:03:01.6]} 9. Nxd4 {[%clk 0:03:03]} 9... Re8 {[%clk
0:03:01.3]} 10. h3 {[%clk 0:03:02.3]} 10... a6 {[%clk 0:03:01.7]} 11. Be3 {[%clk
0:02:59.6]} 11... Rb8 {[%clk 0:03:01.2]} 12. a4 {[%clk 0:02:59.8]} 12... a5
{[%clk 0:02:52.3]} 13. Qc2 {[%clk 0:02:58.9]} 13... c6 {[%clk 0:02:49.3]} 14.
Rad1 {[%clk 0:02:56.1]} 14... Qc7 {[%clk 0:02:40.2]} 15. Rfe1 {[%clk 0:02:56]}
15... Nc5 {[%clk 0:02:34.9]} 16. Ndb5 {[%clk 0:02:24.3]} 16... cxb5 {[%clk
0:02:32.9]} 17. Nxb5 {[%clk 0:02:25.2]} 17... Qe7 {[%clk 0:02:31.7]} 18. Nxd6
{[%clk 0:02:20.5]} 18... Nfd7 {[%clk 0:02:32.2]} 19. Nxe8 {[%clk 0:02:11.5]}
19... Qxe8 {[%clk 0:02:33.1]} 20. f4 {[%clk 0:01:53.7]} 20... b6 {[%clk
0:02:31.1]} 21. e5 {[%clk 0:01:53.9]} 21... Bb7 {[%clk 0:02:19.3]} 22. Bd5
{[%clk 0:01:39.5]} 22... Na6 {[%clk 0:02:17.6]} 23. Qg2 {[%clk 0:01:38]} 23...
Ndc5 {[%clk 0:02:15.6]} 24. Bxb7 {[%clk 0:01:28.6]} 24... Rxb7 {[%clk
0:02:16.5]} 25. Qd5 {[%clk 0:01:27.2]} 25... Rb8 {[%clk 0:02:10.6]} 26. Bf2
{[%clk 0:00:56.6]} 26... Bf8 {[%clk 0:02:09]} 27. g4 {[%clk 0:00:31.6]} 27...
Nb4 {[%clk 0:02:07.5]} 28. Qf3 {[%clk 0:00:28.7]} 28... Qxa4 {[%clk 0:01:51.2]}
29. f5 {[%clk 0:00:25.9]} 29... Qc6 {[%clk 0:01:51.8]} 30. Qg3 {[%clk
0:00:11.7]} 30... Re8 {[%clk 0:01:48]} 31. e6 {[%clk 0:00:11.3]} 31... fxe6
{[%clk 0:01:45.8]} 32. f6 {[%clk 0:00:11.9]} 32... e5 {[%clk 0:01:29.7]} 33. g5
{[%clk 0:00:11.3]} 33... e4 {[%clk 0:01:25.7]} 34. Qf4 {[%clk 0:00:10.4]} 34...
Qb7 {[%clk 0:01:20]} 35. Bxc5 {[%clk 0:00:05.2]} 35... Bxc5+ {[%clk 0:01:19.3]}
36. Kf1 {[%clk 0:00:06.1]} 36... e3 {[%clk 0:01:11.3]} 37. Kg1 {[%clk
0:00:02.3]} 0-1

[Event "*** Titled Tuesday Blitz"]
[Site "Chess.com"]
[Date "2020.10.20"]
[Round "9"]
[White "Durarbayli"]
[Black "TomiLen"]
[Result "0-1"]
[WhiteElo "2766"]
[BlackElo "2634"]
[TimeControl "180+1"]
[EndTime "11:46:50 PDT"]
[Termination "TomiLen won by resignation"]

1. e4 {[%clk 0:02:58.7]} 1... e6 {[%clk 0:03:00.1]} 2. d4 {[%clk 0:02:56.7]}
2... d5 {[%clk 0:03:00.3]} 3. e5 {[%clk 0:02:57.6]} 3... c5 {[%clk 0:02:59.9]}
4. c3 {[%clk 0:02:58.1]} 4... Qb6 {[%clk 0:03:00]} 5. Nf3 {[%clk 0:02:56.3]}
5... Nc6 {[%clk 0:03:00.1]} 6. Be2 {[%clk 0:02:55.5]} 6... cxd4 {[%clk
0:02:57.4]} 7. cxd4 {[%clk 0:02:56.4]} 7... Nh6 {[%clk 0:02:57.5]} 8. Bxh6
{[%clk 0:02:56.2]} 8... Qxb2 {[%clk 0:02:44.5]} 9. Nc3 {[%clk 0:02:54.8]} 9...
Qxc3+ {[%clk 0:02:38.4]} 10. Bd2 {[%clk 0:02:54.5]} 10... Qa3 {[%clk 0:02:37.4]}
11. O-O {[%clk 0:02:48.1]} 11... Be7 {[%clk 0:02:37.4]} 12. Qc2 {[%clk
0:02:47.4]} 12... Bb4 {[%clk 0:02:26.7]} 13. Rab1 {[%clk 0:02:24.8]} 13... Bxd2
{[%clk 0:02:22.7]} 14. Qxd2 {[%clk 0:02:25.7]} 14... O-O {[%clk 0:02:20.2]} 15.
Rfc1 {[%clk 0:02:23.2]} 15... Qe7 {[%clk 0:02:19.1]} 16. Rb3 {[%clk 0:02:09.7]}
16... h6 {[%clk 0:02:18.5]} 17. Bd3 {[%clk 0:02:06.9]} 17... Bd7 {[%clk
0:02:04.7]} 18. Rxb7 {[%clk 0:02:03.7]} 18... Rab8 {[%clk 0:02:04.9]} 19. Rc7
{[%clk 0:02:03.7]} 19... Rb6 {[%clk 0:01:55.5]} 20. Bb1 {[%clk 0:01:51.1]} 20...
Qd8 {[%clk 0:01:07.2]} 21. R7xc6 {[%clk 0:01:49.1]} 21... Bxc6 {[%clk
0:00:58.8]} 22. Qd3 {[%clk 0:01:45.1]} 22... g6 {[%clk 0:00:53.7]} 23. h4 {[%clk
0:01:44.9]} 23... Bb5 {[%clk 0:00:53.5]} 24. Qe3 {[%clk 0:01:44]} 24... Kg7
{[%clk 0:00:47.9]} 25. h5 {[%clk 0:01:42.3]} 25... Rc6 {[%clk 0:00:40.5]} 26.
Re1 {[%clk 0:01:32.7]} 26... g5 {[%clk 0:00:33]} 27. Nh2 {[%clk 0:01:30.7]}
27... Qa5 {[%clk 0:00:31.2]} 28. f4 {[%clk 0:00:58.9]} 28... Rfc8 {[%clk
0:00:30.1]} 29. fxg5 {[%clk 0:00:52.5]} 29... Qxe1+ {[%clk 0:00:29.6]} 30. Qxe1
{[%clk 0:00:50.7]} 30... Rc1 {[%clk 0:00:30.1]} 31. gxh6+ {[%clk 0:00:47.5]}
31... Kxh6 {[%clk 0:00:29.9]} 0-1

[Event "*** Titled Tuesday Blitz"]
[Site "Chess.com"]
[Date "2020.10.20"]
[Round "9"]
[White "Rud_Makarian"]
[Black "Azatic"]
[Result "1-0"]
[WhiteElo "2755"]
[BlackElo "2574"]
[TimeControl "180+1"]
[EndTime "11:46:53 PDT"]
[Termination "Rud_Makarian won on time"]

1. d3 {[%clk 0:02:55.4]} 1... c5 {[%clk 0:02:57.9]} 2. g3 {[%clk 0:02:55.2]}
2... Nc6 {[%clk 0:02:57.4]} 3. Bg2 {[%clk 0:02:55.7]} 3... g6 {[%clk 0:02:58]}
4. f4 {[%clk 0:02:54.1]} 4... Bg7 {[%clk 0:02:58.2]} 5. Nf3 {[%clk 0:02:54.8]}
5... d5 {[%clk 0:02:58.8]} 6. O-O {[%clk 0:02:55.7]} 6... Nf6 {[%clk 0:02:59.3]}
7. Nc3 {[%clk 0:02:56.3]} 7... d4 {[%clk 0:02:57.3]} 8. Na4 {[%clk 0:02:56.4]}
8... Nd7 {[%clk 0:02:57.6]} 9. c4 {[%clk 0:02:57.3]} 9... O-O {[%clk 0:02:55.1]}
10. a3 {[%clk 0:02:56.8]} 10... Qc7 {[%clk 0:02:51.7]} 11. Rb1 {[%clk
0:02:57.2]} 11... a5 {[%clk 0:02:50.7]} 12. e4 {[%clk 0:02:57]} 12... b6 {[%clk
0:02:32.9]} 13. b3 {[%clk 0:02:50.8]} 13... Bb7 {[%clk 0:02:32.9]} 14. Nb2
{[%clk 0:02:50.8]} 14... e5 {[%clk 0:02:24.7]} 15. f5 {[%clk 0:02:51]} 15...
gxf5 {[%clk 0:02:22.2]} 16. Nh4 {[%clk 0:02:19.4]} 16... Ne7 {[%clk 0:02:18.8]}
17. Nxf5 {[%clk 0:02:15.6]} 17... Nxf5 {[%clk 0:02:19]} 18. Rxf5 {[%clk
0:02:16.2]} 18... f6 {[%clk 0:02:18.9]} 19. Qh5 {[%clk 0:02:13.9]} 19... Rf7
{[%clk 0:02:13.9]} 20. Bd2 {[%clk 0:02:13.8]} 20... Re8 {[%clk 0:02:03.1]} 21.
a4 {[%clk 0:02:14]} 21... Nf8 {[%clk 0:02:00.7]} 22. Rbf1 {[%clk 0:02:14.4]}
22... Bc8 {[%clk 0:01:59.7]} 23. R5f2 {[%clk 0:02:13.1]} 23... Be6 {[%clk
0:01:50.9]} 24. Bh3 {[%clk 0:02:12.4]} 24... Qd7 {[%clk 0:01:50.1]} 25. Bxe6
{[%clk 0:02:12.1]} 25... Nxe6 {[%clk 0:01:33.4]} 26. Nd1 {[%clk 0:02:11.9]}
26... Rff8 {[%clk 0:01:30.1]} 27. Rf5 {[%clk 0:02:08.7]} 27... Bh8 {[%clk
0:01:15.5]} 28. Bh6 {[%clk 0:02:08]} 28... Bg7 {[%clk 0:01:15.2]} 29. Bd2 {[%clk
0:02:03.1]} 29... Bh8 {[%clk 0:01:13.8]} 30. Qh4 {[%clk 0:01:58.1]} 30... Bg7
{[%clk 0:01:05.4]} 31. Nf2 {[%clk 0:01:57.8]} 31... Qf7 {[%clk 0:01:03.4]} 32.
Ng4 {[%clk 0:01:57]} 32... Qg6 {[%clk 0:01:03.2]} 33. Rh5 {[%clk 0:01:53]} 33...
Re7 {[%clk 0:00:29.1]} 34. Rff5 {[%clk 0:01:52.3]} 34... Ref7 {[%clk 0:00:23.3]}
35. Kg2 {[%clk 0:01:50.7]} 35... Kh8 {[%clk 0:00:14.8]} 36. Bh6 {[%clk
0:01:49.7]} 36... Kg8 {[%clk 0:00:09.7]} 37. Bd2 {[%clk 0:01:32.7]} 37... Ng5
{[%clk 0:00:07]} 38. Bxg5 {[%clk 0:01:28.4]} 38... fxg5 {[%clk 0:00:07.9]} 39.
Rfxg5 {[%clk 0:01:27.2]} 39... Qe6 {[%clk 0:00:03.4]} 40. Rxh7 {[%clk
0:01:25.6]} 1-0